bitfinex/quotes_SOLUSD_20230102
["timestamp","ask_amount","ask_price","bid_price","bid_amount"]
[1672693554871,30.0,11.397,11.381,183.8063]
[1672693555052,65.88,11.396,11.382,117.8363]
[1672693555269,30.0,11.395,11.382,117.8363]
[1672693555486,181.65650934,11.395,11.382,117.8363]
[1672693555813,30.0,11.393,11.384,30.0]
[1672693556018,30.0,11.393,11.383,117.8363]
[1672693556222,103.53913071,11.392,11.383,117.8363]
[1672693556646,103.53913071,11.392,11.384,30.0]
[1672693557053,103.53913071,11.392,11.383,117.8363]
[1672693557684,30.0,11.391,11.383,117.8363]
[1672693557910,133.53913071,11.391,11.383,117.8363]
[1672693558126,30.0,11.389,11.383,117.8363]
[1672693558314,103.53913071,11.39,11.383,117.8363]
[1672693559493,46.85840253,11.389,11.383,117.8363]
[1672693560533,103.53913071,11.389,11.383,117.8363]
[1672693564547,46.85840253,11.388,11.383,117.8363]
[1672693565158,103.53913071,11.388,11.383,117.8363]
[1672693572949,48.11737863,11.392,11.384,30.0]
[1672693573161,46.85840253,11.392,11.384,30.0]
[1672693574321,103.53913071,11.392,11.383,183.7963]
[1672693574647,6.13,11.39,11.383,117.8363]
[1672693574856,36.13,11.39,11.383,117.8363]
[1672693575047,30.0,11.388,11.383,117.8363]
[1672693575495,151.65650934,11.387,11.383,117.8363]
[1672693575884,56.68072818,11.386,11.383,117.8363]
[1672693576110,46.85840253,11.387,11.383,117.8363]
[1672693576856,103.53913071,11.387,11.383,117.8363]
[1672693585036,112.79840253,11.386,11.374,66.01]
[1672693585250,30.0,11.385,11.369,66.04]
[1672693585466,30.0,11.383,11.369,66.04]
[1672693585666,65.97,11.382,11.369,66.04]
[1672693585871,30.0,11.381,11.369,66.04]
[1672693586089,133.53913071,11.381,11.369,66.04]
[1672693586418,46.85840253,11.38,11.369,66.04]
[1672693586605,30.0,11.379,11.369,66.04]
[1672693586818,30.0,11.379,11.367,30.0]
[1672693587042,30.0,11.377,11.368,66.05]
[1672693587661,86.68072818,11.377,11.368,66.05]
[1672693587884,133.53913071,11.377,11.364,66.07]
[1672693588099,46.85840253,11.377,11.365,30.0]
[1672693588291,46.85840253,11.377,11.367,30.0]
[1672693588501,46.85840253,11.377,11.368,66.05]
[1672693589142,46.85840253,11.377,11.366,66.06]
[1672693590101,30.0,11.376,11.366,66.06]
[1672693590301,30.0,11.376,11.364,66.07]
[1672693590517,30.0,11.376,11.361,30.0]
[1672693590518,30.0,11.374,11.362,180.8357]
[1672693590841,56.68072818,11.373,11.363,30.0]
[1672693591041,30.0,11.372,11.364,66.07]
[1672693591362,30.0,11.372,11.363,114.7557]
[1672693591565,46.85840253,11.371,11.363,114.7557]
[1672693591887,128.87072818,11.37,11.363,114.7557]
[1672693592093,30.0,11.369,11.363,114.7557]
[1672693592306,46.85840253,11.369,11.363,114.7557]
[1672693592713,46.85840253,11.368,11.363,114.7557]
[1672693593552,46.85840253,11.368,11.348,187.12860615]
[1672693593553,169.58913071,11.368,11.348,187.12860615]
[1672693593763,169.58913071,11.368,11.351,117.0857]
[1672693593974,46.85840253,11.367,11.351,161.65797245]
[1672693594203,30.0,11.365,11.352,74.57227245]
[1672693594393,30.0,11.365,11.353,66.13]
[1672693594603,110.04621194,11.364,11.353,66.13]
[1672693594819,110.04621194,11.364,11.353,110.70227245]
[1672693595032,110.04621194,11.363,11.353,44.57227245]
[1672693595335,140.04621194,11.362,11.353,44.57227245]
[1672693595972,110.04621194,11.362,11.353,44.57227245]
[1672693596181,6.19,11.37,11.366,203.94687877]
[1672693596387,66.02,11.373,11.366,203.94687877]
[1672693596621,106.50631194,11.372,11.366,203.94687877]
[1672693596836,96.03,11.371,11.366,203.94687877]
[1672693597145,60.89460941,11.37,11.366,203.94687877]
[1672693597354,96.04,11.369,11.366,88.95497877]
[1672693597546,30.0,11.368,11.354,30.0]
[1672693597756,66.05,11.367,11.354,30.0]
[1672693597966,126.94460941,11.367,11.354,96.13]
[1672693598195,45.61170253,11.368,11.354,96.13]
[1672693598604,45.61170253,11.368,11.355,25.7033]
[1672693598934,45.61170253,11.368,11.356,96.12]
[1672693599127,60.89460941,11.371,11.361,30.0]
[1672693599549,60.89460941,11.371,11.361,96.09]
[1672693599885,36.18,11.37,11.36,30.0]
[1672693600192,30.0,11.37,11.36,30.0]
[1672693600382,106.50631194,11.371,11.36,30.0]
[1672693601236,106.50631194,11.371,11.359,66.1]
[1672693601445,172.53631194,11.371,11.358,30.0]
[1672693604085,172.53631194,11.371,11.358,74.57227245]
[1672693604288,172.53631194,11.371,11.361,30.0]
[1672693604502,106.50631194,11.371,11.361,30.0]
[1672693604701,106.50631194,11.371,11.361,74.57227245]
[1672693605432,106.50631194,11.371,11.361,30.0]
[1672693605853,66.04,11.37,11.361,30.0]
[1672693606063,172.53631194,11.371,11.361,30.0]
[1672693606905,172.53631194,11.371,11.36,30.0]
[1672693607658,172.53631194,11.371,11.359,115.8976]
[1672693607872,30.0,11.37,11.359,115.8976]
[1672693608068,30.0,11.368,11.351,116.958]
[1672693608277,66.05,11.367,11.351,116.958]
[1672693608495,30.0,11.366,11.351,116.958]
[1672693608700,30.0,11.364,11.351,116.958]
[1672693608918,30.0,11.362,11.351,161.53027245]
[1672693609225,66.09,11.361,11.351,116.958]
[1672693609635,30.0,11.362,11.351,116.958]
[1672693610052,66.08,11.363,11.352,30.0]
[1672693610262,59.54725743,11.362,11.352,30.0]
[1672693610483,66.07,11.364,11.352,96.14]
[1672693610702,66.07,11.364,11.352,30.0]
[1672693611533,225.14339329,11.365,11.353,66.13]
[1672693611745,115.8605,11.374,11.355,44.57227245]
[1672693611962,115.8605,11.373,11.357,30.0]
[1672693612284,66.02,11.372,11.358,178.9732]
[1672693612470,66.02,11.372,11.359,30.0]
[1672693612681,112.01892928,11.372,11.359,30.0]
[1672693612907,30.0,11.371,11.359,30.0]
[1672693613124,66.04,11.37,11.359,30.0]
[1672693613955,75.99892928,11.369,11.351,66.15]
[1672693614174,30.0,11.367,11.35,209.0132]
[1672693614362,66.06,11.366,11.35,209.0132]
[1672693614574,163.49964671,11.366,11.35,209.0132]
[1672693615743,45.99892928,11.365,11.35,209.0132]
[1672693615957,66.07,11.364,11.35,209.0132]
[1672693616166,66.07,11.364,11.352,30.0]
[1672693616999,108.7991,11.365,11.354,30.0]
[1672693617824,66.07,11.364,11.354,30.0]
[1672693618506,66.07,11.364,11.352,96.14]
[1672693618793,66.07,11.364,11.352,30.0]
[1672693622679,66.07,11.364,11.352,144.5671]
[1672693627182,154.79802928,11.365,11.352,144.5671]
[1672693627512,66.05,11.368,11.352,210.7071]
[1672693627832,66.05,11.368,11.356,44.57227245]
[1672693628019,66.05,11.368,11.356,30.0]
[1672693628234,66.04,11.369,11.356,30.0]
[1672693628667,66.04,11.369,11.358,30.0]
[1672693629090,30.0,11.368,11.357,112.9442]
[1672693629491,66.04,11.369,11.357,112.9442]
[1672693629719,51.44071743,11.368,11.357,112.9442]
[1672693630134,51.44071743,11.368,11.358,30.0]
[1672693633083,51.44071743,11.368,11.357,112.9442]
[1672693633277,51.44071743,11.368,11.358,30.0]
[1672693633816,108.7201,11.372,11.359,44.57227245]
[1672693634009,108.7201,11.372,11.359,158.77457245]
[1672693634214,174.7401,11.372,11.36,66.09]
[1672693634438,174.7401,11.372,11.36,180.2923]
[1672693634658,108.7201,11.372,11.36,180.2923]
[1672693634868,108.7201,11.372,11.361,30.0]
[1672693635400,108.7201,11.372,11.362,66.08]
[1672693635790,108.7201,11.372,11.363,30.0]
[1672693637270,65.99,11.378,11.363,30.0]
[1672693637482,65.98,11.379,11.365,30.0]
[1672693637693,65.98,11.379,11.366,110.1268]
[1672693638008,65.98,11.379,11.367,30.0]
[1672693638219,65.97,11.381,11.367,140.1268]
[1672693638434,36.18,11.38,11.363,30.0]
[1672693638650,30.0,11.378,11.365,30.0]
[1672693638861,65.99,11.377,11.365,30.0]
[1672693639284,65.98,11.379,11.365,30.0]
[1672693639494,65.98,11.379,11.365,96.06]
[1672693639702,65.98,11.379,11.365,30.0]
[1672693640121,65.98,11.379,11.367,30.0]
[1672693640649,30.0,11.378,11.366,111.9808]
[1672693640968,65.99,11.377,11.367,111.9808]
[1672693642321,30.0,11.378,11.367,111.9808]
[1672693643476,65.99,11.377,11.359,96.1]
[1672693643698,30.0,11.376,11.363,30.0]
[1672693643898,65.99,11.377,11.363,30.0]
[1672693644115,65.98,11.379,11.365,30.0]
[1672693644847,65.98,11.379,11.367,30.0]
[1672693645174,65.98,11.379,11.366,111.5378]
[1672693645380,30.0,11.378,11.366,111.5378]
[1672693645584,65.99,11.377,11.36,72.22]
[1672693645799,65.99,11.377,11.362,111.5378]
[1672693646000,141.9862,11.376,11.362,111.5378]
[1672693646213,30.0,11.374,11.362,111.5378]
[1672693646430,66.02,11.373,11.362,111.5378]
[1672693646851,66.01,11.374,11.363,30.0]
[1672693647262,111.9862,11.375,11.363,30.0]
[1672693647471,65.99,11.377,11.363,96.08]
[1672693647680,65.98,11.379,11.365,30.0]
[1672693647902,6.17,11.38,11.366,177.5687]
[1672693648109,30.0,11.378,11.366,111.5087]
[1672693648323,65.99,11.377,11.366,111.5087]
[1672693648531,30.0,11.378,11.366,111.5087]
[1672693648743,65.99,11.377,11.366,111.5087]
[1672693648971,30.0,11.376,11.36,6.18]
[1672693649167,30.0,11.376,11.362,30.0]
[1672693649486,30.0,11.376,11.363,66.08]
[1672693649682,147.5997,11.376,11.364,30.0]
[1672693649893,117.5997,11.376,11.364,30.0]
[1672693650437,30.0,11.375,11.363,66.08]
[1672693650747,96.01,11.375,11.362,145.3947]
[1672693651574,213.6097,11.375,11.362,145.3947]
[1672693651784,117.5997,11.375,11.362,145.3947]
[1672693652621,30.0,11.374,11.362,115.3947]
[1672693653048,117.5997,11.375,11.362,115.3947]
[1672693653261,117.5997,11.375,11.363,30.0]
[1672693653896,117.5997,11.375,11.362,115.3947]
[1672693655581,30.0,11.373,11.362,115.3947]
[1672693655770,180.0789,11.374,11.362,115.3947]
[1672693655985,114.0689,11.374,11.362,115.3947]
[1672693656852,114.0689,11.374,11.363,30.0]
[1672693657040,114.0689,11.374,11.363,96.08]
[1672693663158,66.02,11.373,11.363,30.0]
[1672693663375,65.98,11.379,11.365,30.0]
[1672693664193,65.98,11.379,11.367,30.0]
[1672693664831,30.0,11.378,11.362,66.08]
[1672693665038,30.0,11.378,11.362,109.5281]
[1672693665039,181.5596,11.377,11.362,109.5281]
[1672693665248,30.0,11.376,11.363,30.0]
[1672693665461,66.01,11.375,11.363,30.0]
[1672693671161,66.01,11.375,11.362,109.5281]
[1672693671489,30.0,11.374,11.362,109.5281]
[1672693671686,66.02,11.373,11.362,109.5281]
[1672693671886,30.0,11.372,11.362,109.5281]
[1672693673483,66.02,11.373,11.362,109.5281]
[1672693677163,30.0,11.372,11.363,49.1928]
[1672693677795,66.02,11.373,11.364,24.4707]
[1672693679999,6.18,11.37,11.364,24.4707]
[1672693680211,30.0,11.368,11.364,24.4707]
[1672693680847,66.04,11.369,11.364,24.4707]
[1672693681246,111.05504139,11.369,11.364,24.4707]
[1672693684115,156.44308868,11.369,11.364,24.4707]
[1672693684324,30.0,11.368,11.364,24.4707]
[1672693684537,66.05,11.367,11.364,24.4707]
[1672693684746,156.45308868,11.367,11.364,24.4707]
[1672693684940,45.01504139,11.366,11.364,24.4707]
[1672693685480,90.40308868,11.366,11.353,66.13]
[1672693685671,24.4707,11.364,11.354,23.3101]
[1672693685892,6.21,11.37,11.355,66.12]
[1672693686106,6.21,11.37,11.356,30.0]
[1672693686319,6.21,11.37,11.358,30.0]
[1672693686643,6.21,11.37,11.36,30.0]
[1672693686849,6.21,11.37,11.361,48.1661]
[1672693687470,6.21,11.37,11.362,23.3101]
[1672693688209,6.21,11.37,11.362,46.2938]
[1672693689057,46.57381473,11.37,11.362,46.2938]
[1672693689892,30.0,11.369,11.357,66.11]
[1672693690101,66.05,11.368,11.354,91.0315]
[1672693690319,30.0,11.367,11.354,24.9015]
[1672693690636,70.36381473,11.367,11.354,24.9015]
[1672693690945,179.00351473,11.367,11.354,24.9015]
[1672693691154,30.0,11.365,11.354,24.9015]
[1672693691553,175.8054,11.366,11.354,24.9015]
[1672693691767,30.0,11.365,11.354,24.9015]
[1672693692391,175.8054,11.366,11.354,24.9015]
[1672693692813,30.0,11.365,11.354,24.9015]
[1672693693020,109.7454,11.366,11.354,24.9015]
[1672693693254,30.0,11.365,11.354,24.9015]
[1672693694621,109.7454,11.366,11.354,24.9015]
[1672693695024,30.0,11.365,11.354,24.9015]
[1672693695968,109.7454,11.366,11.354,24.9015]
[1672693696193,30.0,11.365,11.354,24.9015]
[1672693696512,30.0,11.363,11.354,24.9015]
[1672693696928,66.07,11.364,11.354,24.9015]
[1672693698938,66.07,11.364,11.355,22.8937]
[1672693699127,106.43381473,11.364,11.355,22.8937]
[1672693701263,30.0,11.363,11.355,22.8937]
[1672693702715,106.43381473,11.364,11.355,22.8937]
[1672693706713,40.36381473,11.364,11.355,22.8937]
[1672693708710,106.43381473,11.364,11.355,22.8937]
[1672693709018,40.36381473,11.364,11.355,22.8937]
[1672693716665,106.43381473,11.364,11.355,22.8937]
[1672693729323,40.36381473,11.364,11.355,52.8937]
[1672693729540,106.43381473,11.364,11.355,52.8937]
[1672693730266,106.43381473,11.364,11.355,22.8937]
[1672693734471,40.36381473,11.364,11.355,22.8937]
[1672693734892,40.36381473,11.364,11.356,24.9814]
[1672693736275,106.43381473,11.364,11.356,24.9814]
[1672693747946,40.36381473,11.364,11.356,24.9814]
[1672693748455,43.4991245,11.368,11.357,30.0]
[1672693748785,66.04,11.369,11.357,76.0507]
[1672693748999,3.07,11.37,11.359,30.0]
[1672693749205,3.07,11.37,11.36,46.3512]
[1672693749395,47.6289909,11.37,11.361,30.0]
[1672693749601,91.1281154,11.37,11.362,22.7704]
[1672693750785,66.04,11.369,11.362,22.7704]
[1672693752142,91.1281154,11.37,11.362,22.7704]
[1672693752869,66.04,11.369,11.362,22.7704]
[1672693754994,110.5989909,11.369,11.362,22.7704]
[1672693764558,44.5589909,11.369,11.362,22.7704]
[1672693767923,110.5989909,11.369,11.362,22.7704]
[1672693768122,44.5589909,11.369,11.362,22.7704]
[1672693768321,30.0,11.368,11.362,22.7704]
[1672693769401,110.5989909,11.369,11.362,22.7704]
[1672693770972,154.0981154,11.369,11.362,22.7704]
[1672693774549,88.0581154,11.369,11.362,22.7704]
[1672693776439,154.0981154,11.369,11.362,22.7704]
[1672693776853,88.0581154,11.369,11.362,22.7704]
[1672693782531,52.67155419,11.368,11.362,22.7704]
[1672693784547,100.9739628,11.368,11.362,22.7704]
[1672693784949,52.67155419,11.367,11.362,22.7704]
[1672693795774,30.0,11.366,11.362,22.7704]
[1672693795990,96.06,11.366,11.354,66.13]
[1672693796201,30.0,11.364,11.355,24.7459]
[1672693796746,52.67155419,11.364,11.355,24.7459]
[1672693797883,52.67155419,11.364,11.355,54.7459]
[1672693798325,52.67155419,11.364,11.356,30.0]
[1672693801163,66.05,11.367,11.356,30.0]
[1672693801350,110.7798,11.375,11.36,3.08]
[1672693801562,110.7798,11.374,11.362,30.0]
[1672693801872,245.27978726,11.374,11.364,30.0]
[1672693802081,208.76021129,11.373,11.363,46.359]
[1672693802291,208.76021129,11.373,11.364,46.359]
[1672693802497,208.76021129,11.373,11.365,23.1238]
[1672693802498,112.74021129,11.372,11.365,23.1238]
[1672693802833,178.77021129,11.371,11.365,23.1238]
[1672693803051,112.74021129,11.371,11.365,23.1238]
[1672693804099,52.67155419,11.37,11.365,23.1238]
[1672693809162,195.18857797,11.374,11.365,23.1238]
[1672693809781,261.19857797,11.374,11.365,23.1238]
[1672693810107,195.18857797,11.374,11.366,30.0]
[1672693810618,261.19857797,11.374,11.366,30.0]
[1672693811258,65.99,11.378,11.366,30.0]
[1672693811470,52.67155419,11.378,11.368,30.0]
[1672693811665,65.99,11.377,11.368,30.0]
[1672693812093,30.0,11.376,11.366,30.0]
[1672693812307,66.01,11.375,11.366,30.0]
[1672693812513,56.63228152,11.375,11.366,30.0]
[1672693812843,56.63228152,11.374,11.366,30.0]
[1672693813574,56.63228152,11.374,11.365,53.0099]
[1672693814192,215.9223,11.377,11.365,53.0099]
[1672693814403,56.63228152,11.376,11.365,53.0099]
[1672693814924,66.01,11.375,11.365,53.0099]
[1672693815338,122.64228152,11.375,11.365,53.0099]
[1672693815567,56.63228152,11.375,11.365,53.0099]
[1672693816952,56.63228152,11.375,11.365,23.0099]
[1672693817352,66.01,11.374,11.365,23.0099]
[1672693817565,66.01,11.374,11.365,53.0099]
[1672693817776,122.64228152,11.374,11.365,53.0099]
[1672693818088,56.63228152,11.374,11.365,53.0099]
[1672693818507,56.63228152,11.374,11.365,23.0099]
[1672693819370,56.63228152,11.374,11.365,53.0099]
[1672693821265,56.63228152,11.374,11.366,30.0]
[1672693823991,56.63228152,11.374,11.365,23.0099]
[1672693825562,56.63228152,11.374,11.365,53.0099]
[1672693825971,56.63228152,11.374,11.365,23.0099]
[1672693827983,56.63228152,11.374,11.365,53.0099]
[1672693828619,56.63228152,11.374,11.366,30.0]
[1672693829990,56.63228152,11.374,11.365,53.0099]
[1672693830913,56.63228152,11.374,11.365,23.0099]
[1672693831558,66.02,11.373,11.365,23.0099]
[1672693831972,56.63228152,11.372,11.365,23.0099]
[1672693832930,112.93570529,11.372,11.365,23.0099]
[1672693833353,56.63228152,11.371,11.365,23.0099]
[1672693836711,112.93570529,11.371,11.365,23.0099]
[1672693837872,56.63228152,11.37,11.365,23.0099]
[1672693843871,30.0,11.369,11.365,23.0099]
[1672693844059,96.04,11.369,11.365,23.0099]
[1672693844390,56.63228152,11.368,11.365,23.0099]
[1672693864703,56.63228152,11.369,11.365,23.0099]
[1672693865109,94.94965303,11.369,11.365,23.0099]
[1672693867019,56.63228152,11.368,11.365,23.0099]
[1672693868785,112.93570529,11.368,11.365,23.0099]
[1672693869631,56.63228152,11.367,11.365,23.0099]
[1672693870261,56.63228152,11.367,11.364,22.5251]
[1672693872899,38.31737151,11.369,11.364,22.5251]
[1672693873113,94.94965303,11.369,11.364,22.5251]
[1672693875304,30.0,11.368,11.364,22.5251]
[1672693875720,30.0,11.366,11.364,22.5251]
[1672693875918,30.0,11.366,11.363,23.6975]
[1672693876127,116.71464547,11.365,11.363,23.6975]
[1672693876557,56.63228152,11.364,11.363,23.6975]
[1672693876988,56.63228152,11.364,11.357,134.1735]
[1672693877395,56.63228152,11.364,11.357,157.8086]
[1672693882868,56.63228152,11.364,11.357,223.9186]
[1672693883066,56.63228152,11.364,11.357,157.8086]
[1672693884141,56.63228152,11.364,11.358,30.0]
[1672693889285,56.63228152,11.364,11.357,187.8086]
[1672693889500,56.63228152,11.364,11.358,30.0]
[1672693890553,60.08236395,11.365,11.358,30.0]
[1672693890863,60.08236395,11.365,11.358,54.8024]
[1672693893695,116.71464547,11.365,11.358,54.8024]
[1672693894313,116.71464547,11.365,11.358,24.8024]
[1672693896119,116.71464547,11.365,11.358,54.8024]
[1672693898741,116.71464547,11.365,11.358,24.8024]
[1672693903047,60.08236395,11.364,11.358,24.8024]
[1672693903469,116.71464547,11.364,11.358,24.8024]
[1672693916741,60.08236395,11.363,11.358,24.8024]
[1672693917148,60.08236395,11.363,11.353,24.0141]
[1672693917149,226.83201698,11.363,11.353,24.0141]
[1672693917355,3.09,11.36,11.353,47.2496]
[1672693917778,142.85311451,11.359,11.353,47.2496]
[1672693917989,208.95311451,11.359,11.353,47.2496]
[1672693918212,30.0,11.357,11.353,47.2496]
[1672693918419,160.75201698,11.358,11.353,23.2355]
[1672693918622,38.73337905,11.357,11.353,23.2355]
[1672693922309,44.03737151,11.359,11.353,23.2355]
[1672693927254,3.09,11.36,11.353,23.2355]
[1672693929041,59.72228152,11.36,11.353,23.2355]
[1672693929764,103.75965303,11.36,11.353,23.2355]
[1672693932403,100.66965303,11.36,11.353,23.2355]
[1672693933035,30.0,11.359,11.353,23.2355]
[1672693933245,96.1,11.359,11.353,23.2355]
[1672693933460,120.1912704,11.358,11.353,23.2355]
[1672693933768,56.63228152,11.357,11.353,23.2355]
[1672693935992,120.1912704,11.357,11.353,23.2355]
[1672693936814,56.63228152,11.356,11.353,23.2355]
[1672693937146,120.1912704,11.356,11.353,23.2355]
[1672693937880,56.63228152,11.356,11.353,23.2355]
[1672693938076,55.63228152,11.356,11.353,23.2355]
[1672693941877,63.55898888,11.359,11.353,23.2355]
[1672693942192,120.10460373,11.359,11.353,23.2355]
[1672693952910,56.54561485,11.359,11.353,23.2355]
[1672693953332,54.54561485,11.359,11.353,23.2355]
[1672693954174,116.8292,11.361,11.353,89.3655]
[1672693954369,66.04,11.369,11.354,30.0]
[1672693954580,66.04,11.369,11.356,30.0]
[1672693954805,117.50885485,11.369,11.357,161.4499]
[1672693955005,30.0,11.367,11.358,30.0]
[1672693955215,66.06,11.366,11.359,46.9775]
[1672693955425,117.51885485,11.367,11.359,46.9775]
[1672693955642,117.51885485,11.367,11.36,23.4978]
[1672693956909,30.0,11.366,11.36,23.4978]
[1672693957542,117.51885485,11.367,11.36,23.4978]
[1672693957939,175.87541706,11.367,11.36,23.4978]
[1672693959112,30.0,11.366,11.36,23.4978]
[1672693959329,66.06,11.365,11.36,23.4978]
[1672693963538,109.82541706,11.366,11.36,23.4978]
[1672693978236,30.0,11.364,11.36,23.4978]
[1672693978566,66.06,11.365,11.36,23.4978]
[1672693978971,117.52885485,11.365,11.36,23.4978]
[1672693979198,175.88541706,11.365,11.36,23.4978]
[1672693979410,109.82541706,11.365,11.36,23.4978]
[1672693979619,109.82541706,11.365,11.355,66.12]
[1672693979828,96.07,11.364,11.353,24.8499]
[1672693980160,109.82541706,11.363,11.353,24.8499]
[1672693980458,81.46885485,11.362,11.353,24.8499]
[1672693980771,51.46885485,11.362,11.353,24.8499]
[1672693980985,58.35656221,11.361,11.353,24.8499]
[1672693981510,109.82541706,11.361,11.353,54.8499]
[1672693981717,109.82541706,11.361,11.353,24.8499]
[1672693986865,109.82541706,11.361,11.353,54.8499]
[1672693987499,109.82541706,11.361,11.353,24.8499]
[1672693991605,109.82541706,11.361,11.353,54.8499]
[1672693993076,109.82541706,11.361,11.353,24.8499]
[1672694001589,51.46885485,11.361,11.354,30.0]
[1672694001896,66.08,11.363,11.354,30.0]
[1672694002114,176.2753,11.364,11.354,30.0]
[1672694002435,227.91748819,11.364,11.354,30.0]
[1672694003887,286.4267725,11.364,11.354,30.0]
[1672694005882,286.4267725,11.364,11.353,54.8499]
[1672694006092,286.4267725,11.364,11.353,24.8499]
[1672694007688,286.4267725,11.364,11.354,30.0]
[1672694009476,286.4267725,11.364,11.353,54.8499]
[1672694009792,286.4267725,11.364,11.353,24.8499]
[1672694012321,286.4267725,11.364,11.354,30.0]
[1672694013394,286.4267725,11.364,11.353,24.8499]
[1672694017589,286.4267725,11.364,11.353,54.8499]
[1672694018431,286.4267725,11.364,11.353,24.8499]
[1672694020445,286.4267725,11.364,11.353,54.8499]
[1672694021678,176.2753,11.364,11.354,30.0]
[1672694025579,227.91748819,11.364,11.354,30.0]
[1672694029372,117.71218819,11.364,11.354,30.0]
[1672694029570,117.71218819,11.364,11.356,30.0]
[1672694030422,117.71218819,11.364,11.356,53.1786]
[1672694031583,66.05,11.367,11.356,53.1786]
[1672694031793,66.05,11.367,11.358,30.0]
[1672694031994,117.69218819,11.367,11.358,30.0]
[1672694032410,117.69218819,11.367,11.359,23.1786]
[1672694033989,51.64218819,11.367,11.359,23.1786]
[1672694034200,66.04,11.369,11.36,30.0]
[1672694034416,66.04,11.37,11.36,56.6143]
[1672694034620,66.04,11.37,11.362,30.0]
[1672694035156,66.04,11.37,11.362,53.5443]
[1672694036509,66.04,11.37,11.362,23.5443]
[1672694041579,117.68218819,11.37,11.362,23.5443]
[1672694046098,30.0,11.369,11.362,23.5443]
[1672694046288,117.68218819,11.37,11.362,23.5443]
[1672694050400,171.1386325,11.37,11.362,23.5443]
[1672694050614,30.0,11.369,11.362,23.5443]
[1672694050816,66.05,11.368,11.362,23.5443]
[1672694052811,117.68218819,11.369,11.362,23.5443]
[1672694053867,30.0,11.368,11.362,23.5443]
[1672694054081,66.05,11.367,11.362,23.5443]
[1672694054273,117.69218819,11.367,11.362,23.5443]
[1672694054928,171.1486325,11.367,11.362,23.5443]
[1672694055121,105.0986325,11.367,11.362,23.5443]
[1672694058504,124.92758819,11.366,11.362,23.5443]
[1672694058706,124.92758819,11.366,11.353,23.2592]
[1672694058913,30.0,11.364,11.353,53.2592]
[1672694059127,66.08,11.363,11.353,53.2592]
[1672694059332,181.07738006,11.363,11.353,53.2592]
[1672694059534,114.99738006,11.362,11.353,53.2592]
[1672694059745,66.09,11.361,11.353,53.2592]
[1672694059963,124.95758819,11.361,11.353,53.2592]
[1672694060174,124.95758819,11.361,11.353,23.2592]
[1672694062183,58.86758819,11.361,11.353,23.2592]
[1672694075755,114.99738006,11.361,11.353,23.2592]
[1672694076069,124.95758819,11.36,11.353,23.2592]
[1672694076479,58.86758819,11.359,11.353,23.2592]
[1672694076801,58.86758819,11.358,11.353,23.2592]
[1672694078175,66.11,11.357,11.353,23.2592]
[1672694078357,58.86758819,11.358,11.353,23.2592]
[1672694083116,85.81311449,11.358,11.353,23.2592]
[1672694086269,58.86758819,11.357,11.353,23.2592]
[1672694087623,124.97758819,11.357,11.353,23.2592]
[1672694088037,58.86758819,11.356,11.353,23.2592]
[1672694088459,30.0,11.355,11.353,23.2592]
[1672694088684,87.67109787,11.355,11.353,23.2592]
[1672694088889,58.75674782,11.354,11.353,23.2592]
[1672694089527,58.75674782,11.354,11.352,23.2153]
[1672694090347,58.75674782,11.354,11.345,66.18]